bitfinex-derivatives/quotes_ETHF0:USTF0_20250902
["timestamp","ask_amount","ask_price","bid_price","bid_amount"]
[1756803026911,0.689,4403.2,4403.1,3.4388]
[1756803027609,0.91611,4403.2,4403.1,3.4388]
[1756803027914,0.689,4403.2,4403.1,3.4388]
[1756803031610,0.689,4403.2,4403.1,3.2078]
[1756803032611,0.4055,4403.2,4402.9,0.231]
[1756803032808,0.5282,4403.0,4402.6,3.2078]
[1756803033009,0.689,4402.9,4402.8,0.231]
[1756803033211,0.689,4402.9,4402.8,0.7508]
[1756803033408,0.689,4402.9,4402.8,0.9464]
[1756803033604,3.2078,4403.7,4402.8,0.9464]
[1756803033918,0.4863,4403.9,4403.8,0.7154]
[1756803034114,0.2835,4404.2,4403.8,0.6343]
[1756803034311,0.4863,4404.2,4404.1,0.4033]
[1756803034510,0.4863,4404.2,4404.1,0.9464]
[1756803034913,0.689,4404.2,4404.1,0.9464]
[1756803040017,0.689,4404.2,4404.1,0.4387]
[1756803040318,0.689,4404.2,4404.1,0.2077]
[1756803040718,0.689,4404.2,4404.1,0.708]
[1756803040920,0.5138,4405.0,4404.4,0.3957]
[1756803041221,0.2828,4405.3,4405.2,0.7061]
[1756803041420,3.2078,4405.6,4405.2,0.9371]
[1756803041615,0.4883,4405.5,4405.4,0.7061]
[1756803042320,3.2078,4405.6,4405.5,0.3104]
[1756803042521,3.2078,4405.6,4405.5,0.7061]
[1756803042717,3.8865,4405.6,4405.5,0.7061]
[1756803043423,3.8865,4405.6,4405.5,0.9371]
[1756803043718,3.8865,4405.6,4405.5,0.231]
[1756803043926,0.6787,4404.7,4404.6,3.6035]
[1756803044124,0.6787,4404.7,4404.6,0.6267]
[1756803044324,0.6787,4404.7,4404.6,0.9371]
[1756803044919,0.6787,4404.7,4404.6,0.4368]
[1756803045623,0.6787,4404.7,4404.6,0.9371]
[1756803046224,0.6787,4404.7,4404.6,0.6267]
[1756803046918,0.6787,4404.7,4404.6,0.3957]
[1756803047221,0.4883,4404.7,4404.6,0.7061]
[1756803047624,0.6787,4404.7,4404.6,0.7061]
[1756803048420,0.2828,4405.4,4404.6,0.3957]
[1756803048624,0.2828,4405.4,4404.7,0.3104]
[1756803049321,0.2055,4404.8,4404.7,0.7061]
[1756803049527,0.4883,4404.8,4404.7,0.7061]
[1756803050529,0.6787,4404.8,4404.7,0.2058]
[1756803050718,0.3959,4404.8,4404.1,3.2078]
[1756803051029,0.6787,4404.5,4404.4,0.6267]
[1756803052717,0.6787,4404.5,4404.4,0.2058]
[1756803052922,0.6787,4404.5,4404.3,0.231]
[1756803054422,0.6787,4404.5,4404.4,0.2058]
[1756803055022,0.6787,4404.5,4404.4,0.7061]
[1756803055418,0.2828,4404.5,4404.4,0.7061]
[1756803055623,0.4883,4404.5,4404.4,0.9371]
[1756803055925,0.6787,4404.5,4404.4,0.9371]
[1756803057933,0.3959,4404.5,4404.1,3.2078]
[1756803058225,0.6787,4404.3,4404.2,0.231]
[1756803058430,0.6787,4404.3,4404.2,0.4368]
[1756803058631,0.6787,4404.3,4404.2,0.2058]
[1756803058932,0.6787,4404.3,4404.2,0.231]
[1756803059435,0.6787,4404.3,4404.2,0.4368]
[1756803061339,0.6787,4404.3,4404.2,0.9371]
[1756803062037,0.2828,4404.8,4404.3,0.3104]
[1756803062238,0.4883,4404.8,4404.7,0.7061]
[1756803062437,3.2078,4404.9,4404.7,0.9371]
[1756803062634,3.2078,4404.9,4404.8,0.3104]
[1756803062842,3.2078,4404.9,4404.8,0.7061]
[1756803063434,5.344,4405.4,4404.8,0.3957]
[1756803063631,3.6961,4405.5,4404.9,0.3104]
[1756803063836,3.6961,4405.5,4405.4,0.7061]
[1756803064337,3.2078,4405.5,4405.4,0.7061]
[1756803064935,3.8865,4405.5,4405.4,0.231]
[1756803065139,4.0046,4405.5,4405.4,0.231]
[1756803065444,3.8865,4405.5,4405.4,0.9371]
[1756803066736,3.6961,4405.5,4405.4,0.9371]
[1756803067544,3.8865,4405.5,4405.4,0.9371]
[1756803069644,3.8865,4405.5,4405.4,0.6267]
[1756803069944,0.2055,4405.5,4405.4,0.7007]
[1756803070136,0.2055,4405.5,4405.4,0.9317]
[1756803070539,0.5171,4405.5,4405.4,0.9317]
[1756803070742,0.3116,4406.0,4405.4,0.6267]
[1756803071038,5.52478942,4407.2,4405.4,0.6267]
[1756803071039,0.5174,4406.3,4406.2,0.7037]
[1756803071342,0.725,4406.3,4406.2,0.9347]
[1756803072841,0.5174,4406.3,4406.2,0.9347]
[1756803073337,3.2078,4406.7,4406.2,0.6297]
[1756803073338,0.3116,4406.6,4406.2,0.6297]
[1756803073542,0.5174,4406.6,4406.5,0.7037]
[1756803073839,0.725,4406.6,4406.5,0.7037]
[1756803074039,0.3116,4406.4,4405.7,0.3987]
[1756803074245,0.5174,4406.4,4406.3,0.7037]
[1756803074445,0.5174,4406.4,4406.3,0.9347]
[1756803074746,0.725,4406.4,4406.3,0.9347]
[1756803075042,0.3116,4406.9,4406.3,0.6297]
[1756803075241,0.725,4406.9,4406.8,0.3987]
[1756803075543,0.4134,4406.7,4406.6,0.231]
[1756803075737,0.725,4406.7,4406.6,0.4282]
[1756803076744,0.3116,4406.6,4406.1,3.2078]
[1756803076947,0.725,4406.6,4406.5,0.231]
[1756803080447,0.4134,4406.2,4406.1,3.2078]
[1756803080748,0.725,4406.2,4406.1,3.405]
[1756803080951,0.725,4406.2,4406.1,3.636]
[1756803081245,0.725,4406.2,4406.1,3.941]
[1756803081445,0.725,4406.2,4406.1,4.1425]
[1756803081849,0.725,4406.2,4406.1,3.8375]
[1756803082548,0.725,4406.2,4406.1,0.4282]
[1756803084244,0.725,4406.2,4406.1,0.7332]
[1756803084444,0.725,4406.2,4406.1,0.9347]
[1756803086950,0.725,4406.2,4406.1,0.7037]
[1756803087246,0.725,4406.2,4406.1,0.9347]
[1756803088152,0.5174,4406.2,4406.1,0.9347]
[1756803088352,0.2058,4406.2,4406.1,0.9347]
[1756803088549,0.3116,4406.4,4406.1,0.6297]
[1756803088754,3.7252,4406.6,4406.5,0.7037]
[1756803088955,3.7252,4406.6,4406.5,0.9347]
[1756803089253,3.9328,4406.6,4406.5,0.9347]
[1756803090556,3.9328,4406.6,4406.5,0.6297]
[1756803091758,3.9328,4406.6,4405.6,44.0078]
[1756803091759,0.4134,4406.2,4406.1,0.231]
[1756803092049,0.4134,4405.8,4405.7,0.62566]
[1756803092356,0.725,4405.8,4405.7,0.9347]
[1756803094254,0.3116,4405.7,4405.6,44.0078]
[1756803094453,0.725,4405.7,4405.6,0.231]
[1756803095662,0.725,4405.7,4405.6,0.4282]
[1756803096558,0.725,4405.1,4405.0,32.698]
[1756803096758,0.725,4405.1,4405.0,32.929]
[1756803097361,0.725,4405.1,4405.0,32.698]
[1756803097655,0.725,4405.1,4405.0,0.231]
[1756803098255,0.725,4405.1,4404.4,3.5128]
[1756803098560,0.5174,4404.5,4404.4,3.9115]
[1756803098758,0.5174,4404.5,4404.4,4.1425]
[1756803100755,0.5174,4404.5,4404.4,3.9115]
[1756803100961,0.7072,4404.5,4404.4,4.1425]
[1756803101859,0.7072,4404.5,4404.4,3.9115]
[1756803102059,0.7072,4404.5,4404.4,4.1425]
[1756803103063,0.7072,4404.5,4404.4,3.9115]
[1756803103266,0.7072,4404.5,4404.4,3.636]
[1756803103464,0.7072,4404.5,4404.4,3.405]
[1756803103762,0.7072,4404.5,4404.4,3.636]
[1756803104155,0.7072,4404.5,4404.4,3.9234]
[1756803105761,0.7072,4404.5,4404.4,3.636]
[1756803106364,0.7072,4404.5,4404.4,4.1205]
[1756803108064,0.7072,4404.5,4404.4,3.8895]
[1756803108267,0.7072,4404.5,4404.4,0.9127]
[1756803109567,0.1929,4403.9,4403.8,0.6837]
[1756803109758,0.6878,4404.4,4404.3,0.1992]
[1756803109963,0.6878,4404.4,4404.3,0.7176]
[1756803110971,5.344,4404.9,4404.3,0.6273]
[1756803111173,0.3827,4404.5,4404.4,0.231]
[1756803111371,0.6878,4404.5,4404.4,0.231]
[1756803111760,0.6878,4404.5,4404.4,0.4302]
[1756803112174,0.6878,4404.5,4404.4,0.7176]
[1756803112475,0.6878,4404.5,4404.4,0.4302]
[1756803113269,0.3827,4403.8,4403.7,0.6837]
[1756803113475,0.3051,4403.7,4403.0,0.2874]
[1756803113769,0.6878,4403.2,4403.1,0.4302]
[1756803114273,0.6878,4403.2,4403.1,0.9147]
[1756803115871,0.6878,4403.2,4403.1,0.6273]
[1756803116565,0.6878,4403.2,4403.1,0.9147]
[1756803117572,0.6878,4403.2,4403.1,0.231]
[1756803118167,0.3827,4403.2,4402.6,3.2078]
[1756803118367,0.6878,4402.8,4402.7,0.1992]
[1756803118676,0.6878,4402.8,4402.7,0.9147]
[1756803118864,3.2078,4403.7,4402.7,0.6273]
[1756803119070,0.3051,4403.6,4402.8,0.2874]
[1756803119475,0.6878,4403.6,4403.5,0.1992]
[1756803120775,0.6878,4403.6,4403.5,0.6837]
[1756803121769,0.6878,4403.6,4403.1,0.5184]
[1756803121969,3.2078,4403.7,4402.7,0.2874]
[1756803121970,0.3051,4403.5,4402.7,0.2874]
[1756803122177,0.6878,4403.5,4403.4,0.1992]
[1756803122678,0.8071,4403.5,4402.8,0.2874]
[1756803122874,0.8071,4403.5,4403.0,0.231]
[1756803123072,0.3051,4403.4,4402.7,0.2874]
[1756803123272,0.6878,4403.0,4402.9,0.3963]
[1756803123479,0.6878,4403.0,4402.9,0.6837]
[1756803123674,0.3051,4403.6,4403.0,0.2874]
[1756803123876,0.6878,4403.6,4403.5,0.3963]
[1756803124082,0.6878,4403.6,4403.5,0.6837]
[1756803124281,6.0318,4403.6,4403.5,0.6837]
[1756803124981,6.0318,4403.6,4403.5,0.3963]
[1756803125582,6.0318,4403.6,4403.5,0.6837]
[1756803126481,6.0318,4403.6,4403.2,0.2874]
[1756803126781,6.0318,4403.6,4402.6,3.6041]
[1756803126782,0.1929,4402.7,4402.6,3.6041]
[1756803126982,0.1929,4402.7,4402.6,4.1225]
[1756803126983,0.498,4402.7,4402.6,4.1225]
[1756803127684,0.6878,4402.7,4402.6,0.6837]
[1756803127882,0.6878,4402.7,4402.6,0.6273]
[1756803128179,0.6878,4402.7,4402.6,0.9147]
[1756803128881,0.87683278,4402.7,4402.3,0.231]
[1756803129185,0.6944,4402.4,4402.3,0.6224]
[1756803129485,0.88344937,4402.4,4402.3,0.9239]
[1756803129879,0.88344937,4402.4,4402.3,0.3914]
[1756803130779,0.88344937,4402.4,4402.0,0.231]
[1756803131084,0.6944,4402.1,4402.0,0.4316]
[1756803131282,0.88344937,4402.1,4402.0,0.4316]
[1756803131486,0.88344937,4402.1,4401.5,0.3015]
[1756803131685,0.88344937,4402.0,4401.9,0.4316]
[1756803132180,0.88344937,4402.0,4401.9,0.9239]
[1756803132685,0.18904937,4402.0,4401.9,0.9239]
[1756803132875,0.18904937,4402.3,4402.2,0.3914]
[1756803133079,0.18902471,4402.3,4402.2,0.6929]
[1756803135979,3.2078,4403.2,4402.2,8.12785999]
[1756803136185,3.2078,4403.7,4403.0,0.8124]
[1756803136378,0.88340344,4403.6,4403.3,0.3015]
[1756803136580,0.3829,4403.6,4403.5,0.2006]
[1756803136892,0.88342221,4403.6,4403.5,0.2006]
[1756803137190,0.88342221,4403.6,4403.5,0.6929]
[1756803137989,0.18902221,4403.6,4403.5,0.6929]
[1756803138183,0.88342221,4403.6,4403.5,0.2006]
[1756803138380,0.88342221,4403.6,4403.0,0.3015]
[1756803138586,0.88342221,4403.6,4402.7,3.2078]
[1756803138587,0.6944,4403.2,4403.1,0.231]
[1756803138888,4.09122221,4403.2,4403.1,0.231]
[1756803139290,4.09122221,4403.2,4403.1,0.4316]
[1756803139692,4.09122221,4403.2,4403.1,0.6224]
[1756803139886,4.09122221,4403.2,4403.1,0.9239]
[1756803140091,3.58602221,4403.2,4403.1,0.9239]
[1756803140990,3.89752221,4403.2,4403.1,0.9239]
[1756803141495,0.88342221,4403.2,4403.1,0.9239]
[1756803142190,0.88342221,4403.2,4403.1,0.6224]
[1756803143091,0.57192221,4403.2,4403.1,0.231]
[1756803143286,0.1892,4402.8,4402.7,3.4084]
[1756803143493,0.1892,4402.8,4402.7,4.1317]
[1756803143494,0.88342221,4402.8,4402.7,4.1317]
[1756803143790,0.88400287,4402.8,4402.7,4.1317]
[1756803144183,0.18960287,4402.8,4402.7,4.1317]
[1756803144386,0.18960287,4402.8,4402.7,8.35883]
[1756803144582,0.18958705,4402.8,4402.7,8.05733]
[1756803144794,0.18958705,4402.8,4402.7,7.8302]
[1756803145094,0.18958705,4402.8,4402.7,8.1317]
[1756803149690,0.18958705,4402.8,4402.7,7.9007]
[1756803149897,0.88398705,4402.8,4402.7,3.9007]
[1756803150197,0.88398705,4402.8,4402.7,4.1317]
[1756803150499,0.37878705,4402.8,4402.7,4.1317]
[1756803150901,0.69028705,4402.8,4402.7,4.1317]
[1756803151497,0.88398705,4402.8,4402.7,4.1317]
[1756803151898,0.88398705,4402.8,4402.7,3.9007]
[1756803152102,0.88398705,4402.8,4402.7,3.8302]
[1756803153402,0.88398705,4402.8,4402.7,3.6394]
[1756803154099,0.3115,4402.7,4402.2,3.2078]
[1756803154301,0.6944,4402.3,4402.2,0.6929]
[1756803154505,0.88400381,4402.3,4402.2,0.9239]
[1756803154703,0.88400381,4402.3,4402.2,0.3914]
[1756803154905,0.3115,4402.2,4401.8,41.1015]
[1756803155201,0.6944,4401.9,4401.8,41.1015]
[1756803155404,0.69030381,4401.9,4401.8,41.3325]
[1756803155601,0.37880381,4401.9,4401.8,41.3325]
[1756803155794,0.69030381,4401.9,4401.8,41.1015]
[1756803155997,0.69030381,4401.9,4401.8,41.3325]
[1756803157503,0.69030381,4401.9,4401.8,41.1015]
[1756803157804,0.69030381,4401.9,4401.8,0.9239]
[1756803159004,0.88400381,4401.9,4401.8,0.9239]
[1756803159506,0.69030381,4401.9,4401.8,0.9239]
[1756803159693,0.3017,4402.4,4401.8,0.9239]
[1756803160004,0.18606266,4402.3,4402.2,0.3091]
[1756803160311,0.68576266,4402.3,4402.2,0.9467]
[1756803161402,0.88356266,4402.3,4402.2,0.9467]
[1756803162006,0.18606266,4402.3,4402.2,0.9467]
[1756803162312,0.68576266,4402.3,4402.2,0.9467]
[1756803162501,0.38406266,4402.3,4402.2,0.9467]
[1756803162804,0.18606266,4402.3,4402.2,0.9467]
[1756803163902,0.68576266,4402.3,4402.2,0.7157]
[1756803164103,0.88356266,4402.3,4402.2,0.9467]
[1756803164499,0.18606266,4402.3,4402.2,0.9467]
[1756803164699,0.18606266,4402.3,4402.2,0.7157]
[1756803164992,0.18606266,4402.3,4402.2,0.9467]
[1756803165198,0.6975,4402.8,4402.7,0.2031]
[1756803165493,0.88359904,4402.8,4402.7,0.4341]
[1756803165999,0.88359904,4402.8,4402.7,0.231]
[1756803167511,4.88359904,4402.8,4402.7,0.231]
[1756803169506,0.4997,4401.7,4401.6,3.9235]
[1756803169700,0.6975,4401.7,4401.6,4.1545]
[1756803174316,0.88363658,4401.7,4401.6,4.1545]
[1756803175215,5.4628,4402.5,4401.7,0.3091]
[1756803175216,0.3017,4402.2,4401.7,0.3091]
[1756803175418,0.4997,4402.2,4402.1,0.7157]
[1756803175612,0.18614627,4402.2,4402.1,0.8332]
[1756803175919,0.18614306,4402.2,4402.1,0.8332]
[1756803176527,0.18615978,4402.7,4402.1,4.041]
[1756803176728,0.18615978,4402.6,4402.5,0.4066]
[1756803176926,0.18615978,4402.6,4402.5,0.9467]
[1756803177230,0.68585978,4402.6,4402.5,0.9467]
[1756803177425,0.68585978,4402.6,4402.5,0.7157]
[1756803177632,0.88365978,4402.6,4402.5,0.9467]
[1756803179734,0.88365978,4402.6,4402.5,0.4066]
[1756803179926,0.88365978,4402.6,4402.5,0.9467]
[1756803180825,0.88365978,4402.6,4402.5,0.6376]
[1756803181628,0.58195978,4402.6,4402.5,0.231]
[1756803181823,0.88365978,4402.6,4402.1,0.3091]
[1756803182028,0.18615978,4402.5,4402.2,0.231]
[1756803182225,0.6975,4402.3,4402.2,0.4341]
[1756803182427,0.88365978,4402.3,4402.2,0.9467]
[1756803183235,0.68585978,4402.3,4402.2,0.9467]
[1756803183429,0.48785978,4402.3,4402.2,0.9467]
[1756803184140,0.68585978,4402.3,4402.2,0.9467]
[1756803184629,0.88365978,4402.3,4402.2,0.9467]
[1756803185324,0.6975,4402.3,4402.2,0.9467]
[1756803185528,0.88393648,4402.3,4402.2,0.9467]
[1756803185829,0.88393648,4402.3,4402.2,0.6376]
[1756803186834,0.88393648,4402.3,4402.2,0.9467]
[1756803187738,0.88393648,4402.3,4402.2,0.4066]
[1756803187933,0.88393648,4402.3,4402.2,0.6376]
[1756803191238,0.88393648,4402.3,4402.2,0.4066]
[1756803191437,0.88393648,4402.3,4402.2,0.6376]
[1756803191839,0.88393648,4402.3,4402.2,0.9269]
[1756803192040,0.88393648,4402.3,4402.2,0.4341]
[1756803192240,0.88393648,4402.3,4402.2,0.9322]
[1756803193038,0.88393648,4402.3,4402.2,0.7012]
[1756803193339,0.68613648,4402.3,4402.2,0.9322]
[1756803196137,0.68724577,4402.3,4402.2,0.9322]
[1756803196636,0.18754568,4402.3,4402.2,0.6429]
[1756803196838,3.2078,4402.9,4402.2,4.87005999]
[1756803197035,32.8266,4405.0,4402.2,4.87005999]
[1756803197036,0.1932,4403.4,4403.3,0.413]
[1756803197232,0.7055,4403.4,4403.3,3.4388]
[1756803197438,0.3079,4403.4,4403.3,4.033]
[1756803197845,0.1932,4403.9,4403.8,0.413]
[1756803198047,0.7055,4403.9,4403.8,0.644]
[1756803198350,3.2078,4404.6,4403.8,0.644]
[1756803198351,0.1186,4405.0,4403.8,3.4388]
[1756803198640,0.7055,4404.4,4403.8,3.39430781]
[1756803198837,0.1186,4404.5,4403.0,42.83838614]
[1756803198838,0.3079,4403.3,4403.0,40.8]
[1756803199038,0.3079,4402.8,4402.6,3.2078]
[1756803199240,0.7055,4402.6,4402.5,0.645]
[1756803199441,0.3079,4403.4,4402.5,0.645]
[1756803199644,0.5011,4403.4,4403.3,0.413]
[1756803199850,0.3079,4403.9,4403.3,0.5942]
[1756803200141,0.5111,4404.9,4404.8,0.413]
[1756803200344,0.5111,4404.9,4403.5,0.1185]
[1756803200345,0.3976,4404.9,4404.6,3.2078]
[1756803200540,0.3976,4404.0,4403.9,0.2042]
[1756803200841,0.3976,4404.0,4403.7,0.232]
[1756803201239,3.2078,4404.6,4404.0,0.2893]
[1756803201435,0.1186,4405.0,4404.1,3.9101]
[1756803201436,0.1932,4404.2,4404.1,3.9101]
[1756803201849,0.1932,4404.2,4404.1,4.1421]
[1756803202143,0.7055,4404.2,4404.1,4.1421]
[1756803202344,0.7055,4404.2,4404.1,0.645]
[1756803202548,0.7055,4404.2,4404.1,0.9343]
[1756803202745,0.7055,4404.2,4404.1,0.645]
[1756803203344,0.7055,4404.2,4404.1,0.9343]
[1756803203849,0.7055,4404.2,4404.1,0.645]
[1756803204246,0.7055,4404.2,4404.1,0.9343]
[1756803204551,0.3976,4404.2,4404.1,0.2042]
[1756803204752,0.7055,4404.2,4404.1,0.9343]
[1756803205351,0.7055,4404.2,4404.1,0.645]
[1756803205856,0.7055,4404.2,4403.7,0.2893]
[1756803206055,0.3976,4403.9,4403.8,0.232]
[1756803206353,0.3079,4403.8,4403.6,3.4398]
[1756803206551,0.7055,4403.7,4403.6,3.644]
[1756803206747,0.7055,4403.7,4403.6,0.232]
[1756803207349,0.4265,4403.5,4403.4,0.232]
[1756803207654,0.7055,4402.7,4402.6,32.713]
[1756803207854,0.7055,4402.7,4402.6,32.945]
[1756803209156,0.7055,4402.7,4402.3,3.2078]
[1756803209157,0.3079,4402.6,4402.3,3.4398]
[1756803209351,0.7055,4402.4,4402.3,4.1421]
[1756803209552,0.88977005,4402.4,4402.3,4.1421]
[1756803210159,0.88977005,4402.4,4402.3,3.8528]
[1756803210653,0.88977005,4402.4,4402.3,4.1421]
[1756803210852,0.68537005,4402.4,4402.3,4.1421]
[1756803211053,3.2078,4403.0,4402.3,3.8528]
[1756803211353,3.2078,4403.0,4402.8,0.7023]
[1756803211354,0.18427715,4402.9,4402.8,0.7023]
[1756803211551,0.18427715,4402.9,4402.8,0.9343]
[1756803212260,0.68537715,4402.9,4402.8,0.7023]
[1756803212559,0.88977715,4402.9,4402.4,0.2893]
[1756803212854,0.7055,4402.6,4402.5,0.2042]
[1756803213057,0.7055,4402.6,4402.5,0.4362]
[1756803213461,0.7055,4402.6,4402.5,0.9343]
[1756803214262,0.1932,4402.6,4402.5,0.9343]
[1756803214560,0.5011,4402.8,4402.7,0.7023]
[1756803214748,0.88979205,4402.8,4402.7,0.7023]
[1756803214951,0.88979205,4402.8,4402.5,0.232]
[1756803215155,0.7055,4402.0,4401.9,0.7023]
[1756803215458,0.3079,4401.9,4401.8,3.2078]
[1756803215653,0.7055,4401.9,4401.8,3.412]
[1756803216160,0.7055,4401.9,4401.8,3.6208]
[1756803218655,0.7055,4402.3,4402.2,0.413]
[1756803219060,0.7055,4402.3,4402.2,0.2042]
[1756803219256,0.7055,4402.3,4402.1,0.232]
[1756803220261,0.6873,4402.3,4402.2,0.2018]
[1756803220658,0.2897,4402.8,4402.2,0.702]
[1756803220854,0.4925,4402.4,4402.3,0.702]
[1756803222158,0.6934,4402.4,4402.3,0.702]
[1756803222352,0.6934,4402.4,4402.3,0.6229]
[1756803222958,0.2897,4402.4,4402.3,0.934]
[1756803223160,0.6934,4402.4,4402.3,0.934]
[1756803223362,0.6934,4402.4,4402.3,0.6229]
[1756803223563,0.6934,4402.4,4402.3,0.4338]
[1756803223959,0.1135,4402.7,4402.2,0.4338]
[1756803223960,0.6934,4402.3,4402.2,0.4338]
[1756803224360,0.6934,4402.3,4402.2,0.934]
[1756803225860,0.6934,4402.3,4402.2,0.3909]
[1756803226065,0.6934,4402.3,4402.2,0.6229]
[1756803226758,0.6934,4402.3,4402.0,0.5]
[1756803226759,0.2897,4402.2,4402.0,0.5]
[1756803226966,0.6934,4402.1,4402.0,0.5]
[1756803227166,0.6934,4402.1,4402.0,0.732]
[1756803227867,0.6934,4402.1,4402.0,0.5]
[1756803229869,4.6934,4402.1,4402.0,0.5]
[1756803234070,10.0374,4402.1,4402.0,0.5]
[1756803234569,6.2694,4402.1,4402.0,1.202]
[1756803234964,6.2694,4402.1,4402.0,0.8909]
[1756803235367,6.2694,4402.1,4402.0,0.5]
[1756803236768,0.9254,4402.1,4402.0,0.1856]
[1756803240790,0.6934,4402.1,4402.0,0.6985]
[1756803240986,0.2028,4402.1,4402.0,0.8876]
[1756803241189,0.1135,4402.3,4402.2,0.702]
[1756803241485,0.8069,4402.3,4402.0,0.1856]
[1756803241691,0.4037,4402.1,4402.0,0.6985]
[1756803241891,0.4037,4402.1,4402.0,0.8876]
[1756803242681,0.6934,4402.1,4402.0,0.1856]
[1756803242881,6.0374,4402.1,4402.0,0.1856]
[1756803244494,0.6934,4402.1,4402.0,0.1856]
[1756803245287,1.23132305,4402.1,4402.0,0.1856]
[1756803245995,1.23132305,4402.1,4401.1,0.3111]
[1756803246193,0.6712,4401.2,4401.1,0.5129]
[1756803247294,0.6347,4401.2,4401.1,0.702]
[1756803249698,0.9019,4401.2,4401.1,0.702]
[1756803250294,0.6347,4401.2,4401.1,0.702]
[1756803250693,0.9019,4401.2,4401.1,0.702]
[1756803251295,0.9019,4401.2,4400.6,0.3127]
[1756803251496,3.601,4400.8,4400.7,0.7138]
[1756803251701,3.8682,4400.8,4400.1,0.3127]
[1756803252701,3.601,4400.2,4400.1,0.7138]
[1756803256104,3.601,4400.2,4399.1,0.3127]
[1756803256105,0.2672,4400.1,4399.1,0.3127]
[1756803256298,0.6242,4400.0,4399.9,0.7138]
[1756803258599,0.8914,4400.0,4399.9,0.7138]
[1756803259206,0.8914,4400.0,4399.9,0.5164]
[1756803259396,0.8914,4400.0,4399.9,0.3127]
[1756803259601,0.8914,4400.0,4399.9,0.5164]
[1756803259798,0.8914,4400.0,4399.1,0.3127]
[1756803259993,3.2078,4399.5,4399.4,0.7138]
[1756803261002,0.231,4399.8,4399.5,0.3127]
[1756803261203,0.429,4399.8,4399.7,0.7138]
[1756803261807,0.8914,4399.8,4399.7,0.3127]
[1756803262007,0.8914,4399.8,4399.7,0.5164]
[1756803263110,5.11869,4399.8,4398.6,0.3127]
[1756803263308,3.2078,4398.8,4398.7,0.4011]
[1756803263607,3.4058,4398.8,4398.7,0.7138]
[1756803264411,3.601,4398.8,4398.7,0.7138]
[1756803264908,3.2078,4398.8,4398.7,0.7138]
[1756803265207,3.4058,4398.8,4398.7,0.7138]
[1756803265409,3.2078,4399.4,4398.7,4.7138]
[1756803265608,3.601,4399.4,4399.3,0.2037]
[1756803265808,3.8682,4399.4,4399.3,0.5164]
[1756803266210,3.8682,4399.4,4399.3,0.3127]
[1756803266411,3.8682,4399.4,4399.3,0.5164]
[1756803266813,3.601,4399.4,4399.3,0.7138]
[1756803267508,3.832,4399.4,4399.3,0.7138]
[1756803268006,4.0992,4399.4,4399.3,0.5164]
[1756803268204,3.2078,4399.4,4399.3,0.5164]
[1756803268407,3.2078,4400.9,4400.5,0.1251]
[1756803268711,3.2078,4401.4,4401.3,0.7138]
[1756803269015,3.4058,4401.4,4401.3,0.7138]
[1756803269212,3.601,4401.4,4401.3,0.7138]
[1756803269614,4.1312,4401.4,4400.6,0.3127]
[1756803269916,0.3932,4400.7,4400.6,0.7138]
[1756803271003,0.6924,4400.7,4400.6,0.5164]
[1756803271613,0.3932,4400.7,4400.6,0.7138]
[1756803271811,0.6924,4400.7,4400.6,0.7138]
[1756803274215,0.198,4400.7,4400.6,0.7138]
[1756803274615,0.3932,4400.7,4400.6,0.7138]
[1756803275918,0.3932,4400.7,4399.8,0.7138]
[1756803275919,0.198,4399.9,4399.8,0.7138]
[1756803276313,0.6924,4399.9,4399.8,0.7138]
[1756803276818,0.9234,4399.9,4399.1,0.3127]
[1756803277020,3.601,4399.5,4399.4,0.7138]
[1756803277219,3.4058,4399.5,4399.4,0.7138]
[1756803277821,0.3932,4399.5,4399.4,0.7138]
[1756803278019,3.9002,4399.5,4399.4,0.7138]
[1756803278910,3.9002,4399.5,4398.5,40.9251]
[1756803278911,0.3818,4398.8,4398.7,0.7194]
[1756803280120,0.6892,4398.8,4398.7,0.7194]
[1756803282223,0.6892,4398.8,4398.7,0.5171]
[1756803283625,0.6892,4398.8,4398.1,0.2969]
[1756803283926,0.6892,4398.8,4398.3,0.7036]
[1756803283927,3.2078,4398.4,4398.3,0.7036]
[1756803284819,3.2078,4398.9,4398.3,4.7036]
[1756803285019,3.2078,4398.9,4398.8,0.4067]
[1756803285228,3.2078,4398.9,4398.8,0.7036]
[1756803287825,3.2078,4400.0,4399.0,0.1181]
[1756803288125,3.5896,4400.0,4399.9,0.7036]
[1756803288328,3.897,4400.0,4399.9,0.7036]
[1756803289330,3.897,4400.0,4399.9,0.5013]
[1756803289721,3.897,4400.0,4399.9,0.7036]
[1756803292324,3.897,4400.0,4399.1,0.2969]
[1756803292532,0.1891,4399.2,4399.1,0.7036]
[1756803294521,4.128,4400.0,4399.9,0.5013]
[1756803294729,4.128,4400.0,4399.9,0.7036]
[1756803294927,3.8206,4400.0,4399.9,0.7036]
[1756803295126,4.128,4400.0,4399.9,0.7036]
[1756803296538,4.128,4400.0,4399.1,0.2969]
[1756803298132,3.897,4400.0,4399.1,0.2969]
[1756803298334,4.128,4400.0,4399.1,0.2969]
[1756803299033,3.897,4400.0,4399.9,0.5013]
[1756803299234,0.3818,4400.9,4400.8,0.7036]
[1756803299425,3.2078,4401.4,4400.9,0.2969]
[1756803299426,3.5152,4401.4,4400.9,0.2969]
[1756803299631,3.897,4401.4,4401.3,0.5013]